[Event "Titled Tuesday Blitz April 19 Late 2022"]
[White "Melikhov, Evgeny V."]
[Black "Burke, Paul"]
[WhiteFideId "4122046"]
[BlackFideId "2605767"]
[WhiteElo "1931"]
[BlackElo "1880"]
[Result "1-0"]
[Round "06"]
[TimeControl "180+1"]
[Date "2022.04.19"]
[WhiteClock "0:01:43"]
[BlackClock "0:00:41"]

1. d4 {[%clk 0:03:00]}  Nf6 {[%clk 0:02:59]} 2. c4 {[%clk 0:03:01]}  c5 {[%clk 0:02:59]} 3. d5 {[%clk 0:03:00]}  Ne4 {[%clk 0:02:58]} 4. Qc2 {[%clk 0:02:52]}  Qa5+ {[%clk 0:02:57]} 5. Nd2 {[%clk 0:02:44]}  Nf6 {[%clk 0:02:55]} 6. f3 {[%clk 0:02:42]}  d6 {[%clk 0:02:55]} 7. e4 {[%clk 0:02:42]}  g6 {[%clk 0:02:55]} 8. Ne2 {[%clk 0:02:41]}  Bg7 {[%clk 0:02:54]} 9. Nc3 {[%clk 0:02:41]}  Na6 {[%clk 0:02:53]} 10. Nb3 {[%clk 0:02:35]}  Qd8 {[%clk 0:02:52]} 11. Be3 {[%clk 0:02:32]}  h6 {[%clk 0:02:52]} 12. Qd2 {[%clk 0:02:31]}  Bd7 {[%clk 0:02:40]} 13. Be2 {[%clk 0:02:29]}  Nc7 {[%clk 0:02:39]} 14. a4 {[%clk 0:02:23]}  b6 {[%clk 0:02:38]} 15. Nc1 {[%clk 0:02:20]}  a6 {[%clk 0:02:38]} 16. O-O {[%clk 0:02:16]}  g5 {[%clk 0:02:26]} 17. Nd3 {[%clk 0:02:13]}  O-O {[%clk 0:02:23]} 18. f4 {[%clk 0:02:12]}  gxf4 {[%clk 0:01:47]} 19. Bxf4 {[%clk 0:02:08]}  Kh7 {[%clk 0:01:46]} 20. e5 {[%clk 0:02:06]}  dxe5 {[%clk 0:01:39]} 21. Nxe5 {[%clk 0:02:06]}  Ng8 {[%clk 0:01:09]} 22. Bd3+ {[%clk 0:02:03]}  f5 {[%clk 0:01:09]} 23. Rae1 {[%clk 0:01:54]}  e6 {[%clk 0:00:46]} 24. Nxd7 {[%clk 0:01:47]}  Qxd7 {[%clk 0:00:44]} 25. dxe6 {[%clk 0:01:44]}  Nxe6 {[%clk 0:00:41]} 26. Bxf5+ {[%clk 0:01:43]} 1-0


[Site "https://www.chess.com"]

[Event "Titled Tuesday Blitz April 19 Late 2022"]
[White "Mirza, Diana"]
[Black "Lock, Gavin R"]
[WhiteFideId "2503999"]
[BlackFideId "408646"]
[WhiteElo "1813"]
[BlackElo "2104"]
[Result "0-1"]
[Round "06"]
[TimeControl "180+1"]
[Date "2022.04.19"]
[WhiteClock "0:00:03"]
[BlackClock "0:00:22"]

1. e4 {[%clk 0:03:00]}  c5 {[%clk 0:02:54]} 2. Nf3 {[%clk 0:02:55]}  e6 {[%clk 0:02:54]} 3. d3 {[%clk 0:02:54]}  Nc6 {[%clk 0:02:53]} 4. Nbd2 {[%clk 0:02:54]}  d5 {[%clk 0:02:54]} 5. g3 {[%clk 0:02:54]}  Bd6 {[%clk 0:02:54]} 6. Bg2 {[%clk 0:02:53]}  Nge7 {[%clk 0:02:55]} 7. O-O {[%clk 0:02:53]}  O-O {[%clk 0:02:56]} 8. Re1 {[%clk 0:02:48]}  Qc7 {[%clk 0:02:55]} 9. Nf1 {[%clk 0:02:39]}  Bd7 {[%clk 0:02:45]} 10. h4 {[%clk 0:02:34]}  f6 {[%clk 0:02:37]} 11. N1h2 {[%clk 0:02:29]}  d4 {[%clk 0:02:34]} 12. Qe2 {[%clk 0:02:25]}  b5 {[%clk 0:02:32]} 13. Ng4 {[%clk 0:02:10]}  e5 {[%clk 0:02:31]} 14. h5 {[%clk 0:02:06]}  Bxg4 {[%clk 0:02:30]} 15. Kh2 {[%clk 0:02:02]}  Bxh5 {[%clk 0:02:23]} 16. Rh1 {[%clk 0:02:00]}  Nd8 {[%clk 0:02:05]} 17. Bd2 {[%clk 0:01:54]}  Ne6 {[%clk 0:02:05]} 18. Qf1 {[%clk 0:01:51]}  c4 {[%clk 0:02:02]} 19. Nh4 {[%clk 0:01:48]}  Rfc8 {[%clk 0:01:51]} 20. Nf5 {[%clk 0:01:48]}  Bf7 {[%clk 0:01:47]} 21. g4 {[%clk 0:01:37]}  Rab8 {[%clk 0:01:41]} 22. Kg3 {[%clk 0:01:36]}  Nf4 {[%clk 0:01:35]} 23. Rh4 {[%clk 0:01:23]}  Neg6 {[%clk 0:01:30]} 24. Rh2 {[%clk 0:01:19]}  Nxg2 {[%clk 0:01:21]} 25. Qxg2 {[%clk 0:01:18]}  Nf4 {[%clk 0:01:21]} 26. Qh1 {[%clk 0:01:16]}  Bg6 {[%clk 0:01:13]} 27. Nh4 {[%clk 0:01:13]}  Kf7 {[%clk 0:01:09]} 28. f3 {[%clk 0:00:59]}  cxd3 {[%clk 0:01:03]} 29. cxd3 {[%clk 0:00:55]}  Nxd3 {[%clk 0:01:02]} 30. Nxg6 {[%clk 0:00:44]}  hxg6 {[%clk 0:01:02]} 31. Rh7 {[%clk 0:00:40]}  Nf4 {[%clk 0:00:51]} 32. Qh6 {[%clk 0:00:30]}  Bf8 {[%clk 0:00:45]} 33. g5 {[%clk 0:00:19]}  Qd6 {[%clk 0:00:32]} 34. gxf6 {[%clk 0:00:16]}  Qxf6 {[%clk 0:00:33]} 35. Rh1 {[%clk 0:00:12]}  Rc2 {[%clk 0:00:29]} 36. Bc1 {[%clk 0:00:08]}  Ne2+ {[%clk 0:00:25]} 37. Kg4 {[%clk 0:00:05]}  Qe6+ {[%clk 0:00:24]} 38. Kg5 {[%clk 0:00:03]}  Be7# {[%clk 0:00:22]} 0-1


[Site "https://www.chess.com"]

[Event "Titled Tuesday Blitz April 19 Late 2022"]
[White "Naroditsky, Daniel"]
[Black "Holt, Conrad"]
[WhiteFideId "2026961"]
[BlackFideId "2034387"]
[WhiteElo "2608"]
[BlackElo "2586"]
[Result "1-0"]
[Round "06"]
[TimeControl "180+1"]
[Date "2022.04.19"]
[WhiteClock "0:00:58"]
[BlackClock "0:00:01"]

1. d4 {[%clk 0:03:00]}  d5 {[%clk 0:02:59]} 2. Bf4 {[%clk 0:02:59]}  c5 {[%clk 0:02:55]} 3. e3 {[%clk 0:03:00]}  Nc6 {[%clk 0:02:55]} 4. Nc3 {[%clk 0:02:58]}  cxd4 {[%clk 0:02:47]} 5. exd4 {[%clk 0:02:57]}  a6 {[%clk 0:02:48]} 6. Nf3 {[%clk 0:02:56]}  Bg4 {[%clk 0:02:47]} 7. Be2 {[%clk 0:02:53]}  e6 {[%clk 0:02:47]} 8. Ne5 {[%clk 0:02:52]}  Bxe2 {[%clk 0:02:46]} 9. Nxe2 {[%clk 0:02:53]}  Nxe5 {[%clk 0:02:40]} 10. Bxe5 {[%clk 0:02:54]}  Ne7 {[%clk 0:02:39]} 11. O-O {[%clk 0:02:54]}  Nc6 {[%clk 0:02:38]} 12. Bg3 {[%clk 0:02:54]}  Be7 {[%clk 0:02:38]} 13. c3 {[%clk 0:02:53]}  O-O {[%clk 0:02:37]} 14. Nf4 {[%clk 0:02:53]}  b5 {[%clk 0:02:34]} 15. a3 {[%clk 0:02:44]}  a5 {[%clk 0:02:32]} 16. b4 {[%clk 0:02:42]}  Ra7 {[%clk 0:02:12]} 17. Qe2 {[%clk 0:02:34]}  Qa8 {[%clk 0:02:10]} 18. Rac1 {[%clk 0:02:26]}  axb4 {[%clk 0:02:02]} 19. axb4 {[%clk 0:02:27]}  Qb7 {[%clk 0:02:01]} 20. Nd3 {[%clk 0:02:14]}  Rfa8 {[%clk 0:01:58]} 21. h4 {[%clk 0:02:12]}  Ra3 {[%clk 0:01:51]} 22. h5 {[%clk 0:02:12]}  Bg5 {[%clk 0:01:35]} 23. Rc2 {[%clk 0:02:01]}  h6 {[%clk 0:01:26]} 24. Nc5 {[%clk 0:01:50]}  Qb6 {[%clk 0:01:26]} 25. Qg4 {[%clk 0:01:43]}  Be7 {[%clk 0:00:50]} 26. f4 {[%clk 0:01:33]}  Bd6 {[%clk 0:00:40]} 27. Nxe6 {[%clk 0:01:18]}  Bf8 {[%clk 0:00:17]} 28. Nc5 {[%clk 0:01:02]}  Re8 {[%clk 0:00:09]} 29. f5 {[%clk 0:00:59]}  Qb8 {[%clk 0:00:01]} 30. Bxb8 {[%clk 0:00:58]} 1-0


[Site "https://www.chess.com"]

[Event "Titled Tuesday Blitz April 19 Late 2022"]
[White "Nozdrachev, Leonid"]
[Black "Sarkar, Justin"]
[WhiteFideId "24113433"]
[BlackFideId "2010011"]
[WhiteElo "2242"]
[BlackElo "2038"]
[Result "0-1"]
[Round "06"]
[TimeControl "180+1"]
[Date "2022.04.19"]
[WhiteClock "0:00:11"]
[BlackClock "0:00:07"]

1. d3 {[%clk 0:02:57]}  d5 {[%clk 0:02:45]} 2. Nf3 {[%clk 0:02:55]}  Nf6 {[%clk 0:02:35]} 3. g3 {[%clk 0:02:52]}  c5 {[%clk 0:02:27]} 4. Bg2 {[%clk 0:02:52]}  Nc6 {[%clk 0:02:27]} 5. O-O {[%clk 0:02:51]}  e5 {[%clk 0:02:25]} 6. c4 {[%clk 0:02:43]}  Be7 {[%clk 0:02:15]} 7. Nc3 {[%clk 0:02:39]}  d4 {[%clk 0:02:11]} 8. Na4 {[%clk 0:02:36]}  O-O {[%clk 0:02:04]} 9. a3 {[%clk 0:02:35]}  Bf5 {[%clk 0:01:53]} 10. Nh4 {[%clk 0:02:32]}  Be6 {[%clk 0:01:50]} 11. Bd2 {[%clk 0:02:24]}  Nd7 {[%clk 0:01:47]} 12. Nf3 {[%clk 0:02:11]}  a5 {[%clk 0:01:41]} 13. Be1 {[%clk 0:01:58]}  f5 {[%clk 0:01:36]} 14. Nd2 {[%clk 0:01:55]}  Qc7 {[%clk 0:01:34]} 15. b3 {[%clk 0:01:53]}  Nf6 {[%clk 0:01:25]} 16. Ra2 {[%clk 0:01:52]}  Bd6 {[%clk 0:01:20]} 17. Qb1 {[%clk 0:01:43]}  Rfe8 {[%clk 0:01:10]} 18. Nf3 {[%clk 0:01:36]}  h6 {[%clk 0:01:06]} 19. Nh4 {[%clk 0:01:36]}  g5 {[%clk 0:01:05]} 20. Nf3 {[%clk 0:01:32]}  e4 {[%clk 0:00:53]} 21. Nd2 {[%clk 0:01:31]}  e3 {[%clk 0:00:51]} 22. fxe3 {[%clk 0:01:30]}  dxe3 {[%clk 0:00:51]} 23. Nf3 {[%clk 0:01:28]}  f4 {[%clk 0:00:46]} 24. Nc3 {[%clk 0:01:25]}  Rf8 {[%clk 0:00:29]} 25. Nb5 {[%clk 0:01:24]}  Qd7 {[%clk 0:00:27]} 26. Bc3 {[%clk 0:01:23]}  Bf5 {[%clk 0:00:13]} 27. Qa1 {[%clk 0:01:20]}  Be7 {[%clk 0:00:08]} 28. Ne5 {[%clk 0:01:17]}  Nxe5 {[%clk 0:00:07]} 29. Bxe5 {[%clk 0:01:18]}  Ng4 {[%clk 0:00:04]} 30. Bd5+ {[%clk 0:01:08]}  Kh7 {[%clk 0:00:03]} 31. Bg7 {[%clk 0:01:00]}  Bf6 {[%clk 0:00:03]} 32. Bxf6 {[%clk 0:00:58]}  Nxf6 {[%clk 0:00:03]} 33. Qe5 {[%clk 0:00:53]}  Nxd5 {[%clk 0:00:03]} 34. Qxd5 {[%clk 0:00:52]}  Rae8 {[%clk 0:00:02]} 35. Qxc5 {[%clk 0:00:46]}  Bh3 {[%clk 0:00:02]} 36. Rf3 {[%clk 0:00:39]}  Bg4 {[%clk 0:00:02]} 37. Qd6 {[%clk 0:00:34]}  Qxd6 {[%clk 0:00:01]} 38. Nxd6 {[%clk 0:00:34]}  Bxf3 {[%clk 0:00:01]} 39. Nxe8 {[%clk 0:00:34]}  Rxe8 {[%clk 0:00:02]} 40. gxf4 {[%clk 0:00:32]}  gxf4 {[%clk 0:00:01]} 41. b4 {[%clk 0:00:30]}  Bxe2 {[%clk 0:00:01]} 42. Rxe2 {[%clk 0:00:30]}  f3 {[%clk 0:00:02]} 43. Rf2 {[%clk 0:00:17]}  exf2+ {[%clk 0:00:02]} 44. Kxf2 {[%clk 0:00:18]}  Re2+ {[%clk 0:00:02]} 45. Kxf3 {[%clk 0:00:18]}  Ra2 {[%clk 0:00:02]} 46. b5 {[%clk 0:00:16]}  Rxa3 {[%clk 0:00:02]} 47. Ke4 {[%clk 0:00:17]}  Rb3 {[%clk 0:00:03]} 48. d4 {[%clk 0:00:14]}  a4 {[%clk 0:00:03]} 49. d5 {[%clk 0:00:15]}  a3 {[%clk 0:00:03]} 50. d6 {[%clk 0:00:15]}  Rb1 {[%clk 0:00:04]} 51. c5 {[%clk 0:00:13]}  a2 {[%clk 0:00:04]} 52. d7 {[%clk 0:00:13]}  Rd1 {[%clk 0:00:04]} 53. c6 {[%clk 0:00:13]}  bxc6 {[%clk 0:00:04]} 54. bxc6 {[%clk 0:00:13]}  a1=Q {[%clk 0:00:04]} 55. c7 {[%clk 0:00:14]}  Qa4+ {[%clk 0:00:04]} 56. Ke5 {[%clk 0:00:12]}  Qxd7 {[%clk 0:00:05]} 57. h4 {[%clk 0:00:13]}  Qxc7+ {[%clk 0:00:05]} 58. Kf6 {[%clk 0:00:14]}  Rh1 {[%clk 0:00:05]} 59. h5 {[%clk 0:00:14]}  Rxh5 {[%clk 0:00:05]} 60. Ke6 {[%clk 0:00:14]}  Qc6+ {[%clk 0:00:06]} 61. Kf7 {[%clk 0:00:13]}  Rd5 {[%clk 0:00:06]} 62. Kf8 {[%clk 0:00:13]}  Rd7 {[%clk 0:00:07]} 63. Ke8 {[%clk 0:00:11]}  Qc8# {[%clk 0:00:07]} 0-1


[Site "https://www.chess.com"]

[Event "Titled Tuesday Blitz April 19 Late 2022"]
[White "Ozdemir, Serhan Berat"]
[Black "Jarocka, Liwia"]
[WhiteFideId "6374611"]
[BlackFideId "21807558"]
[WhiteElo "1920"]
[BlackElo "1896"]
[Result "0-1"]
[Round "06"]
[TimeControl "180+1"]
[Date "2022.04.19"]
[WhiteClock "0:00:04"]
[BlackClock "0:00:58"]

1. e4 {[%clk 0:03:00]}  c5 {[%clk 0:02:57]} 2. Nf3 {[%clk 0:02:54]}  d6 {[%clk 0:02:57]} 3. d4 {[%clk 0:02:54]}  cxd4 {[%clk 0:02:58]} 4. Nxd4 {[%clk 0:02:54]}  Nf6 {[%clk 0:02:59]} 5. Nc3 {[%clk 0:02:55]}  a6 {[%clk 0:02:59]} 6. f3 {[%clk 0:02:55]}  e5 {[%clk 0:02:58]} 7. Nb3 {[%clk 0:02:54]}  Be7 {[%clk 0:02:59]} 8. Be3 {[%clk 0:02:54]}  Be6 {[%clk 0:02:59]} 9. Qd2 {[%clk 0:02:54]}  Nc6 {[%clk 0:02:57]} 10. O-O-O {[%clk 0:02:53]}  O-O {[%clk 0:02:57]} 11. g4 {[%clk 0:02:52]}  b5 {[%clk 0:02:56]} 12. g5 {[%clk 0:02:38]}  Ne8 {[%clk 0:02:56]} 13. Nd5 {[%clk 0:02:27]}  Bxd5 {[%clk 0:02:45]} 14. exd5 {[%clk 0:02:28]}  Nb8 {[%clk 0:02:43]} 15. h4 {[%clk 0:02:21]}  Nc7 {[%clk 0:02:35]} 16. h5 {[%clk 0:02:15]}  a5 {[%clk 0:02:34]} 17. Kb1 {[%clk 0:01:41]}  a4 {[%clk 0:02:33]} 18. Nc1 {[%clk 0:01:41]}  a3 {[%clk 0:02:21]} 19. b3 {[%clk 0:01:36]}  Nd7 {[%clk 0:02:03]} 20. g6 {[%clk 0:01:11]}  f5 {[%clk 0:01:48]} 21. gxh7+ {[%clk 0:01:08]}  Kh8 {[%clk 0:01:47]} 22. f4 {[%clk 0:00:57]}  e4 {[%clk 0:01:44]} 23. Ne2 {[%clk 0:00:55]}  Nf6 {[%clk 0:01:43]} 24. Nd4 {[%clk 0:00:50]}  Nfxd5 {[%clk 0:01:41]} 25. Ne6 {[%clk 0:00:40]}  Nxe6 {[%clk 0:01:35]} 26. Qxd5 {[%clk 0:00:40]}  Nc7 {[%clk 0:01:35]} 27. Qd2 {[%clk 0:00:30]}  d5 {[%clk 0:01:24]} 28. Bd4 {[%clk 0:00:30]}  Bf6 {[%clk 0:01:23]} 29. Bh3 {[%clk 0:00:21]}  Bxd4 {[%clk 0:01:19]} 30. Qxd4 {[%clk 0:00:22]}  Qf6 {[%clk 0:01:19]} 31. Qc5 {[%clk 0:00:19]}  Rf7 {[%clk 0:01:12]} 32. c3 {[%clk 0:00:12]}  Rd8 {[%clk 0:01:01]} 33. Bf1 {[%clk 0:00:09]}  Ne6 {[%clk 0:01:00]} 34. Qb6 {[%clk 0:00:06]}  Nxf4 {[%clk 0:00:58]} 35. Bxb5 {[%clk 0:00:04]}  Qxb6 {[%clk 0:00:58]} 0-1


[Site "https://www.chess.com"]

[Event "Titled Tuesday Blitz April 19 Late 2022"]
[White "Petesch, Gabriel"]
[Black "Zong, Davis"]
[WhiteFideId "2032465"]
[BlackFideId "30903955"]
[WhiteElo "2374"]
[BlackElo "2061"]
[Result "1-0"]
[Round "06"]
[TimeControl "180+1"]
[Date "2022.04.19"]
[WhiteClock "0:00:06"]
[BlackClock "0:00:01"]

1. Nf3 {[%clk 0:03:00]}  d5 {[%clk 0:02:59]} 2. g3 {[%clk 0:03:00]}  c6 {[%clk 0:02:59]} 3. Bg2 {[%clk 0:03:00]}  Bg4 {[%clk 0:03:00]} 4. O-O {[%clk 0:03:00]}  Nd7 {[%clk 0:03:00]} 5. d4 {[%clk 0:02:59]}  Ngf6 {[%clk 0:02:59]} 6. Nbd2 {[%clk 0:02:59]}  e6 {[%clk 0:02:59]} 7. b3 {[%clk 0:02:53]}  Be7 {[%clk 0:02:56]} 8. Bb2 {[%clk 0:02:52]}  O-O {[%clk 0:02:56]} 9. c4 {[%clk 0:02:47]}  Re8 {[%clk 0:02:50]} 10. Re1 {[%clk 0:02:44]}  h6 {[%clk 0:02:42]} 11. Ne5 {[%clk 0:02:34]}  Nxe5 {[%clk 0:02:40]} 12. dxe5 {[%clk 0:02:33]}  Nd7 {[%clk 0:02:40]} 13. Qc2 {[%clk 0:02:20]}  Bf5 {[%clk 0:02:36]} 14. e4 {[%clk 0:01:59]}  dxe4 {[%clk 0:02:36]} 15. Bxe4 {[%clk 0:01:55]}  Bxe4 {[%clk 0:02:36]} 16. Nxe4 {[%clk 0:01:55]}  Nc5 {[%clk 0:02:35]} 17. Nd6 {[%clk 0:01:51]}  Bxd6 {[%clk 0:02:22]} 18. Rad1 {[%clk 0:01:48]}  a5 {[%clk 0:01:39]} 19. Qe2 {[%clk 0:01:30]}  Qg5 {[%clk 0:01:15]} 20. exd6 {[%clk 0:00:53]}  Red8 {[%clk 0:01:16]} 21. Ba3 {[%clk 0:00:38]}  Nd7 {[%clk 0:01:06]} 22. Rd4 {[%clk 0:00:24]}  c5 {[%clk 0:00:39]} 23. Rg4 {[%clk 0:00:23]}  Qf6 {[%clk 0:00:33]} 24. Bb2 {[%clk 0:00:23]}  e5 {[%clk 0:00:31]} 25. Rd1 {[%clk 0:00:19]}  Ra6 {[%clk 0:00:20]} 26. Qd2 {[%clk 0:00:08]}  Nf8 {[%clk 0:00:20]} 27. Qe2 {[%clk 0:00:05]}  Ng6 {[%clk 0:00:16]} 28. f4 {[%clk 0:00:03]}  Raxd6 {[%clk 0:00:14]} 29. Rxd6 {[%clk 0:00:02]}  Qxd6 {[%clk 0:00:14]} 30. fxe5 {[%clk 0:00:03]}  Qd2 {[%clk 0:00:14]} 31. Re4 {[%clk 0:00:03]}  Qxe2 {[%clk 0:00:13]} 32. Rxe2 {[%clk 0:00:04]}  Nf8 {[%clk 0:00:13]} 33. Bc3 {[%clk 0:00:03]}  b6 {[%clk 0:00:12]} 34. a3 {[%clk 0:00:04]}  Ne6 {[%clk 0:00:12]} 35. b4 {[%clk 0:00:04]}  axb4 {[%clk 0:00:12]} 36. axb4 {[%clk 0:00:05]}  cxb4 {[%clk 0:00:13]} 37. Bxb4 {[%clk 0:00:06]}  Rd4 {[%clk 0:00:13]} 38. Bd6 {[%clk 0:00:06]}  Rxc4 {[%clk 0:00:12]} 39. Rb2 {[%clk 0:00:06]}  Rc6 {[%clk 0:00:12]} 40. Kf2 {[%clk 0:00:07]}  Nc5 {[%clk 0:00:12]} 41. Ke3 {[%clk 0:00:07]}  f6 {[%clk 0:00:12]} 42. Kd4 {[%clk 0:00:06]}  Kf7 {[%clk 0:00:10]} 43. Kd5 {[%clk 0:00:06]}  Rc8 {[%clk 0:00:09]} 44. Rxb6 {[%clk 0:00:06]}  Nd3 {[%clk 0:00:01]} 45. Rb7+ {[%clk 0:00:06]}  Kg6 {[%clk 0:00:01]} 46. e6 {[%clk 0:00:06]} 1-0


[Site "https://www.chess.com"]

[Event "Titled Tuesday Blitz April 19 Late 2022"]
[White "Pinheiro, Iung Alicio de O."]
[Black "Urazayev, Arystanbek"]
[WhiteFideId "2104350"]
[BlackFideId "13709810"]
[WhiteElo "2596"]
[BlackElo "2422"]
[Result "1-0"]
[Round "06"]
[TimeControl "180+1"]
[Date "2022.04.19"]
[WhiteClock "0:00:15"]
[BlackClock "0:00:25"]

1. c4 {[%clk 0:03:00]}  Nf6 {[%clk 0:03:00]} 2. g3 {[%clk 0:02:59]}  g6 {[%clk 0:03:00]} 3. Bg2 {[%clk 0:02:58]}  Bg7 {[%clk 0:03:01]} 4. Nc3 {[%clk 0:02:59]}  O-O {[%clk 0:03:01]} 5. d3 {[%clk 0:02:59]}  d6 {[%clk 0:03:01]} 6. Bg5 {[%clk 0:02:59]}  c5 {[%clk 0:02:55]} 7. Qd2 {[%clk 0:02:57]}  Nc6 {[%clk 0:02:55]} 8. Nf3 {[%clk 0:02:45]}  a6 {[%clk 0:02:50]} 9. a3 {[%clk 0:02:44]}  Rb8 {[%clk 0:02:48]} 10. Rb1 {[%clk 0:02:44]}  Bg4 {[%clk 0:02:49]} 11. O-O {[%clk 0:02:38]}  Bxf3 {[%clk 0:02:44]} 12. Bxf3 {[%clk 0:02:39]}  Nd4 {[%clk 0:02:45]} 13. Bg2 {[%clk 0:02:38]}  b5 {[%clk 0:02:44]} 14. cxb5 {[%clk 0:02:35]}  axb5 {[%clk 0:02:42]} 15. b4 {[%clk 0:02:35]}  Qd7 {[%clk 0:02:32]} 16. Rfc1 {[%clk 0:02:18]}  Rfc8 {[%clk 0:02:32]} 17. e3 {[%clk 0:01:51]}  Ne6 {[%clk 0:02:29]} 18. Bxf6 {[%clk 0:01:50]}  Bxf6 {[%clk 0:02:29]} 19. Bh3 {[%clk 0:01:31]}  Qa7 {[%clk 0:02:10]} 20. bxc5 {[%clk 0:01:10]}  Rxc5 {[%clk 0:02:08]} 21. Bxe6 {[%clk 0:00:53]}  fxe6 {[%clk 0:02:01]} 22. Ne4 {[%clk 0:00:50]}  Rxc1+ {[%clk 0:01:52]} 23. Qxc1 {[%clk 0:00:50]}  Qd7 {[%clk 0:01:50]} 24. d4 {[%clk 0:00:43]}  Bg7 {[%clk 0:01:41]} 25. Qb2 {[%clk 0:00:42]}  Qc6 {[%clk 0:01:35]} 26. Ng5 {[%clk 0:00:38]}  Qd5 {[%clk 0:01:34]} 27. h4 {[%clk 0:00:38]}  h6 {[%clk 0:01:29]} 28. Nh3 {[%clk 0:00:37]}  e5 {[%clk 0:01:27]} 29. dxe5 {[%clk 0:00:33]}  Bxe5 {[%clk 0:01:28]} 30. Qc2 {[%clk 0:00:28]}  Qe6 {[%clk 0:01:20]} 31. Nf4 {[%clk 0:00:27]}  Bxf4 {[%clk 0:01:20]} 32. exf4 {[%clk 0:00:28]}  Rc8 {[%clk 0:01:18]} 33. Qd3 {[%clk 0:00:27]}  Kg7 {[%clk 0:00:44]} 34. Rxb5 {[%clk 0:00:26]}  Rc1+ {[%clk 0:00:43]} 35. Kg2 {[%clk 0:00:26]}  Qe1 {[%clk 0:00:41]} 36. Qd4+ {[%clk 0:00:10]}  Kh7 {[%clk 0:00:41]} 37. Kf3 {[%clk 0:00:06]}  Qh1+ {[%clk 0:00:40]} 38. Kg4 {[%clk 0:00:07]}  h5+ {[%clk 0:00:32]} 39. Kg5 {[%clk 0:00:07]}  Qf3 {[%clk 0:00:33]} 40. f5 {[%clk 0:00:06]}  gxf5 {[%clk 0:00:24]} 41. Rxf5 {[%clk 0:00:07]}  Rc5 {[%clk 0:00:24]} 42. Rxc5 {[%clk 0:00:06]}  dxc5 {[%clk 0:00:24]} 43. Qf4 {[%clk 0:00:05]}  Qd5+ {[%clk 0:00:23]} 44. Qf5+ {[%clk 0:00:06]}  Qxf5+ {[%clk 0:00:21]} 45. Kxf5 {[%clk 0:00:06]}  Kg7 {[%clk 0:00:22]} 46. Ke5 {[%clk 0:00:07]}  e6 {[%clk 0:00:22]} 47. Ke4 {[%clk 0:00:07]}  Kf7 {[%clk 0:00:22]} 48. f3 {[%clk 0:00:07]}  Ke7 {[%clk 0:00:22]} 49. g4 {[%clk 0:00:07]}  hxg4 {[%clk 0:00:20]} 50. fxg4 {[%clk 0:00:08]}  Kf6 {[%clk 0:00:20]} 51. h5 {[%clk 0:00:09]}  e5 {[%clk 0:00:21]} 52. a4 {[%clk 0:00:09]}  c4 {[%clk 0:00:22]} 53. a5 {[%clk 0:00:10]}  c3 {[%clk 0:00:23]} 54. Kd3 {[%clk 0:00:10]}  Kg5 {[%clk 0:00:23]} 55. Kxc3 {[%clk 0:00:11]}  Kf4 {[%clk 0:00:24]} 56. a6 {[%clk 0:00:11]}  e4 {[%clk 0:00:24]} 57. a7 {[%clk 0:00:12]}  e3 {[%clk 0:00:25]} 58. a8=Q {[%clk 0:00:13]}  e2 {[%clk 0:00:25]} 59. Qf8+ {[%clk 0:00:14]}  Kg3 {[%clk 0:00:25]} 60. Qe7 {[%clk 0:00:14]}  Kf2 {[%clk 0:00:25]} 61. Qxe2+ {[%clk 0:00:15]} 1-0


[Site "https://www.chess.com"]

[Event "Titled Tuesday Blitz April 19 Late 2022"]
[White "Prohorov, Olexandr"]
[Black "Solon, Nathan"]
[WhiteFideId "14105578"]
[BlackFideId "2017229"]
[WhiteElo "1993"]
[BlackElo "2560"]
[Result "0-1"]
[Round "06"]
[TimeControl "180+1"]
[Date "2022.04.19"]
[WhiteClock "0:00:05"]
[BlackClock "0:00:11"]

1. Nf3 {[%clk 0:02:57]}  d5 {[%clk 0:02:59]} 2. d4 {[%clk 0:02:53]}  Nf6 {[%clk 0:02:59]} 3. c4 {[%clk 0:02:52]}  e6 {[%clk 0:02:59]} 4. Nc3 {[%clk 0:02:52]}  a6 {[%clk 0:02:58]} 5. Bf4 {[%clk 0:02:51]}  dxc4 {[%clk 0:02:56]} 6. a4 {[%clk 0:02:46]}  Bb4 {[%clk 0:02:55]} 7. e3 {[%clk 0:02:44]}  Nd5 {[%clk 0:02:53]} 8. Qc2 {[%clk 0:02:40]}  Nxf4 {[%clk 0:02:50]} 9. exf4 {[%clk 0:02:41]}  Nc6 {[%clk 0:02:50]} 10. Rd1 {[%clk 0:02:28]}  b5 {[%clk 0:02:39]} 11. Be2 {[%clk 0:02:07]}  O-O {[%clk 0:02:38]} 12. O-O {[%clk 0:02:06]}  Bxc3 {[%clk 0:02:30]} 13. Ng5 {[%clk 0:02:01]}  g6 {[%clk 0:02:28]} 14. Qxc3 {[%clk 0:01:57]}  Ne7 {[%clk 0:02:03]} 15. Qh3 {[%clk 0:01:56]}  h5 {[%clk 0:02:00]} 16. axb5 {[%clk 0:01:48]}  Nd5 {[%clk 0:01:54]} 17. Bxc4 {[%clk 0:01:41]}  axb5 {[%clk 0:01:45]} 18. Bxb5 {[%clk 0:01:33]}  Rb8 {[%clk 0:01:39]} 19. Bc4 {[%clk 0:01:27]}  Rxb2 {[%clk 0:01:38]} 20. Qa3 {[%clk 0:01:25]}  Rb6 {[%clk 0:01:28]} 21. g3 {[%clk 0:01:20]}  Bb7 {[%clk 0:01:24]} 22. Rfe1 {[%clk 0:01:13]}  Qd6 {[%clk 0:01:17]} 23. Qd3 {[%clk 0:00:59]}  Kg7 {[%clk 0:01:07]} 24. h4 {[%clk 0:00:53]}  Nf6 {[%clk 0:01:01]} 25. Qe2 {[%clk 0:00:46]}  Qc6 {[%clk 0:00:55]} 26. f3 {[%clk 0:00:42]}  Re8 {[%clk 0:00:42]} 27. Rc1 {[%clk 0:00:38]}  Qd7 {[%clk 0:00:32]} 28. Qe5 {[%clk 0:00:38]}  Rd8 {[%clk 0:00:27]} 29. Red1 {[%clk 0:00:34]}  Qd6 {[%clk 0:00:27]} 30. Bd3 {[%clk 0:00:22]}  Qxe5 {[%clk 0:00:23]} 31. dxe5 {[%clk 0:00:16]}  Nd5 {[%clk 0:00:23]} 32. Be4 {[%clk 0:00:13]}  c6 {[%clk 0:00:17]} 33. Rb1 {[%clk 0:00:12]}  Rxb1 {[%clk 0:00:16]} 34. Rxb1 {[%clk 0:00:12]}  Ba6 {[%clk 0:00:16]} 35. Ra1 {[%clk 0:00:08]}  Nb4 {[%clk 0:00:13]} 36. Ra4 {[%clk 0:00:08]}  c5 {[%clk 0:00:13]} 37. Kf2 {[%clk 0:00:07]}  Rd2+ {[%clk 0:00:13]} 38. Ke3 {[%clk 0:00:07]}  Rg2 {[%clk 0:00:13]} 39. Ra5 {[%clk 0:00:05]}  Re2# {[%clk 0:00:11]} 0-1


[Site "https://www.chess.com"]